{"text_format":"3","workbook":"xlsx","n_sheets":1,"sheets":["2024-2025 основ. прогр.+гим.кл"],"not_rendered":{"defined_names":2},"read":"whole","date_system":"1900"}

{"sheet":"2024-2025 основ. прогр.+гим.кл","index":0,"n_rows":545,"n_cols":7,"rows_kept":545,"merged":[[0,5,0,6],[1,0,1,6],[2,0,3,0],[2,1,3,1],[2,2,3,2],[2,3,3,3],[2,4,2,6]]}
[{"$nulls":5},"Утверждены\nприказом Министерства образования\nи науки Республики Татарстан\nот _____2024 №______"]
["Контрольные цифры приема граждан пдля обучения по образовательным программам среднего профессионального образования на 2024/2025 учебный год в профессиональные образовательные организации, подведомственные Министерству образования и науки Республики Татарстан."]
["Наименование ПОО","Базовое образование (основное, среднее (общее))","Код специальности (профессии)","Наименование специальности (профессии)","Проект контрольных цифр приема, чел."]
[{"$nulls":4},"очное","очно-заочное","заочное"]
["Государственное автономное профессиональное учреждение (далее-ГАПОУ) «Казанский строительный колледж»","основное общее","08.02.01","Строительство и эксплуатация зданий и сооружений",65]
["ГАПОУ «Казанский строительный колледж»","среднее общее","08.02.01","Строительство и эксплуатация зданий и сооружений",null,null,25]
["ГАПОУ «Казанский строительный колледж»","среднее общее","08.02.14","Эксплуатация и обслуживание многоквартирного дома",25]
["ГАПОУ «Казанский строительный колледж»","основное общее","08.02.12","Строительство и эксплуатация автомобильных дорог, аэродромов и городских путей сообщения",20]
["ГАПОУ «Казанский строительный колледж»","основное общее","21.02.19","Землеустройство",20]
["ГАПОУ «Казанский строительный колледж»","основное общее","08.02.03","Производство неметаллических строительных изделий и конструкций",20]
["ГАПОУ «Казанский строительный колледж»","основное общее","46.02.01","Документационное обеспечение управления и архивоведение",20]
["ГАПОУ «Казанский строительный колледж»","основное общее","08.02.14","Эксплуатация и обслуживание многоквартирного дома",20]
["ГАПОУ «Казанский строительный колледж»","среднее общее","21.02.19","Землеустройство",20]
["ГАПОУ «Казанский строительный колледж»","основное общее","35.02.12","Садово-парковое и ландшафтное строительство",25]
["ГАПОУ «Казанский строительный колледж»","основное общее","38.02.01","Экономика и бухгалтерский учет (по отраслям) ",20]
["ГАПОУ «Казанский строительный колледж»","основное общее","08.02.13","Монтаж и эксплуатация внутренних сантехнических устройств, кондиционирования воздуха и вентиляции",20]
["ГАПОУ «Казанский строительный колледж»","основное общее","08.01.28","Мастер отделочных строительных и декоративных работ ",40]
["ГАПОУ «Казанский строительный колледж»","основное общее","08.01.27","Мастер общестроительных работ",25]
["ГАПОУ «Казанский строительный колледж»","основное общее","08.01.24","Мастер столярно-плотничных ,паркетных и стекольных работ ",20]
["ГАПОУ «Казанский строительный колледж»","основное общее","15.01.05","Сварщик (ручной и частично механизированной сварки (наплавки)",25]
["ГАПОУ «Казанский строительный колледж»",{"$nulls":3},{"$f":"SUM(E5:E20)","v":385},{"$f":"SUM(F5:F20)","v":0},25]
["ГАПОУ «Международный колледж сервиса»","основное общее","43.01.09","Повар, кондитер",50]
["ГАПОУ «Международный колледж сервиса»","основное общее","43.02.15 ","Поварское и кондитерское дело",50]
["ГАПОУ «Международный колледж сервиса»","основное общее","43.02.17 ","Технологии индустрии красоты",50]
["ГАПОУ «Международный колледж сервиса»","основное общее","43.02.16","Туризм и гостеприимство",50]
["ГАПОУ «Международный колледж сервиса»","основное общее","38.02.03","Операционная деятельность в логистике",25]
["ГАПОУ «Международный колледж сервиса»","основное общее","38.02.04","Коммерция (по отраслям)",25]
["ГАПОУ «Международный колледж сервиса»",{"$nulls":3},{"$f":"SUM(E22:E27)","v":250},{"$f":"SUM(F22:F27)","v":0},0]
["ГАПОУ «Казанский колледж строительства, архитектуры и городского хозяйства»","основное общее","08.02.14","Эксплуатация и обслуживание многоквартирного дома",25]
["ГАПОУ «Казанский колледж строительства, архитектуры и городского хозяйства»","основное общее","08.02.13","Монтаж и эксплуатация внутренних сантехнических устройств, кондиционирования воздуха и вентиляции",25]
["ГАПОУ «Казанский колледж строительства, архитектуры и городского хозяйства»","основное общее","08.02.01","Строительство и эксплуатация зданий и сооружений",50]
["ГАПОУ «Казанский колледж строительства, архитектуры и городского хозяйства»","среднее общее","08.02.01","Строительство и эксплуатация зданий и сооружений",25]
["ГАПОУ «Казанский колледж строительства, архитектуры и городского хозяйства»","основное общее","22.02.06","Сварочное производство",25]
["ГАПОУ «Казанский колледж строительства, архитектуры и городского хозяйства»","основное общее","07.02.01","Архитектура",25]
["ГАПОУ «Казанский колледж строительства, архитектуры и городского хозяйства»","основное общее","38.02.01","Экономика и бухгалтерский учет (по отраслям) ",25]
["ГАПОУ «Казанский колледж строительства, архитектуры и городского хозяйства»","основное общее","38.02.04","Коммерция (по отраслям)",25]
["ГАПОУ «Казанский колледж строительства, архитектуры и городского хозяйства»","основное общее","39.02.01","Социальная работа",25]
["ГАПОУ «Казанский колледж строительства, архитектуры и городского хозяйства»","основное общее","08.01.29","Мастер по ремонту и обслуживанию инженерных систем жилищно-коммунального хозяйства",20]
["ГАПОУ «Казанский колледж строительства, архитектуры и городского хозяйства»",{"$nulls":3},{"$f":"SUM(E29:E38)","v":270},{"$f":"SUM(F29:F38)","v":0},0]
["ГАПОУ «Казанский педагогический колледж»","основное общее","44.02.01","Дошкольное образование ",100]
["ГАПОУ «Казанский педагогический колледж»","основное общее","44.02.02","Преподавание в начальных классах",75]
["ГАПОУ «Казанский педагогический колледж»","основное общее","49.02.01","Физическая культура ",25]
["ГАПОУ «Казанский педагогический колледж»","основное общее","09.02.07","Информационные системы и программирование",25]
["ГАПОУ «Казанский педагогический колледж»","среднее общее","44.02.01","Дошкольное образование ",null,null,50]
["ГАПОУ «Казанский педагогический колледж»","среднее общее","44.02.02","Преподавание в начальных классах",null,null,25]
["ГАПОУ «Казанский педагогический колледж»",{"$nulls":3},{"$f":"SUM(E40:E45)","v":225},{"$f":"SUM(F40:F45)","v":0},75]
["ГАПОУ «Казанский радиомеханический колледж»","основное общее","11.01.01","Монтажник радиоэлектронной аппаратуры и приборов",25]
["ГАПОУ «Казанский радиомеханический колледж»","основное общее","15.01.32","Оператор станков с программным управлением",25]
["ГАПОУ «Казанский радиомеханический колледж»","основное общее","11.02.16","Монтаж, техническое обслуживание и ремонт электронных приборов и устройств",50]
["ГАПОУ «Казанский радиомеханический колледж»","основное общее","15.02.16","Технология машиностроения",25]
["ГАПОУ «Казанский радиомеханический колледж»","основное общее","27.02.07","Управление качеством продукции, процессов и услуг (по отраслям)",25]
["ГАПОУ «Казанский радиомеханический колледж»","основное общее","09.02.01","Компьютерные системы и комплексы",25]
["ГАПОУ «Казанский радиомеханический колледж»",{"$nulls":3},{"$f":"SUM(E47:E52)","v":175},{"$f":"SUM(F47:F52)","v":0},0]
["ГАПОУ «Колледж малого бизнеса и предпринимательства»","основное общее","43.01.09","Повар, кондитер",25]
["ГАПОУ «Колледж малого бизнеса и предпринимательства»","основное общее","43.02.15 ","Поварское и кондитерское дело",50]
["ГАПОУ «Колледж малого бизнеса и предпринимательства»","основное общее","38.02.01","Экономика и бухгалтерский учет (по отраслям) ",25]
["ГАПОУ «Колледж малого бизнеса и предпринимательства»","основное общее","38.02.04","Коммерция (по отраслям)",40]
["ГАПОУ «Колледж малого бизнеса и предпринимательства»","основное общее","43.02.17 ","Технологии индустрии красоты",25]
["ГАПОУ «Колледж малого бизнеса и предпринимательства»","среднее общее","43.02.17 ","Технологии индустрии красоты",20]
["ГАПОУ «Колледж малого бизнеса и предпринимательства»",{"$nulls":3},{"$f":"SUM(E54:E59)","v":185},{"$f":"SUM(F54:F59)","v":0},0]
["ГАПОУ «Казанский политехнический колледж»","основное общее","08.01.29","Мастер по ремонту и обслуживанию инженерных систем жилищно-коммунального хозяйства",25]
["ГАПОУ «Казанский политехнический колледж»","основное общее","13.01.10","Электромонтер по ремонту и обслуживанию электрооборудования (по отраслям) ",50]
["ГАПОУ «Казанский политехнический колледж»","основное общее","15.01.05","Сварщик (ручной и частично механизированной сварки (наплавки)",50]
["ГАПОУ «Казанский политехнический колледж»","основное общее","15.01.35","Мастер слесарных работ",25]
["ГАПОУ «Казанский политехнический колледж»","основное общее","08.02.13","Монтаж и эксплуатация внутренних сантехнических устройств, кондиционирования воздуха и вентиляции",50]
["ГАПОУ «Казанский политехнический колледж»","основное общее","15.02.06","Монтаж, техническая эксплуатация и ремонт холодильно-компрессорных и теплонасосных машин и установок (по отраслям)",25]
["ГАПОУ «Казанский политехнический колледж»","основное общее","15.02.16","Технология машиностроения",25]
["ГАПОУ «Казанский политехнический колледж»","основное общее","19.02.12","Технология продуктов питания животного происхождения",25]
["ГАПОУ «Казанский политехнический колледж»","основное общее","22.02.06","Сварочное производство",25]
["ГАПОУ «Казанский политехнический колледж»","основное общее","46.02.01","Документационное обеспечение управления и архивоведение",25]
["ГАПОУ «Казанский политехнический колледж»",{"$nulls":3},{"$f":"SUM(E61:E70)","v":325},{"$f":"SUM(F61:F70)","v":0},0]
["ГАПОУ «Казанский автотранспортный техникум им. А.П.Обыденнова»","основное общее","23.02.07","Техническое обслуживание и ремонт двигателей, систем и агрегатов автомобилей",50]
["ГАПОУ «Казанский автотранспортный техникум им. А.П.Обыденнова»","среднее общее","23.02.07","Техническое обслуживание и ремонт двигателей, систем и агрегатов автомобилей",25]
["ГАПОУ «Казанский автотранспортный техникум им. А.П.Обыденнова»","основное общее","09.02.07","Информационные системы и программирование",25]
["ГАПОУ «Казанский автотранспортный техникум им. А.П.Обыденнова»","основное общее","08.02.12","Строительство и эксплуатация автомобильных дорог, аэродромов и городских путей сообщения",25]
["ГАПОУ «Казанский автотранспортный техникум им. А.П.Обыденнова»","основное общее","23.02.04","Техническая эксплуатация подъемно-транспортных, строительных, дорожных машин и оборудования (по отраслям)",50]
["ГАПОУ «Казанский автотранспортный техникум им. А.П.Обыденнова»","основное общее","23.02.01","Организация перевозок и управление на транспорте (по видам)",50]
["ГАПОУ «Казанский автотранспортный техникум им. А.П.Обыденнова»","основное общее","23.02.05","Эксплуатация транспортного электрооборудования и автоматики (по видам транспорта за исключением водного)",25]
["ГАПОУ «Казанский автотранспортный техникум им. А.П.Обыденнова»","основное общее","23.01.09","Машинист локомотива",25]
["ГАПОУ «Казанский автотранспортный техникум им. А.П.Обыденнова»","основное общее","23.01.17","Мастер по ремонту и обслуживанию автомобилей",25]
["ГАПОУ «Казанский автотранспортный техникум им. А.П.Обыденнова»","основное общее","23.01.06","Машинист дорожных и строительных машин",25]
["ГАПОУ «Казанский автотранспортный техникум им. А.П.Обыденнова»",{"$nulls":3},{"$f":"SUM(E72:E81)","v":325},{"$f":"SUM(F72:F81)","v":0},0]
["ГАПОУ «Казанский энергетический колледж»","основное общее","13.02.03","Электрические станции, сети и системы",25]
["ГАПОУ «Казанский энергетический колледж»","среднее общее","13.02.03","Электрические станции, сети и системы",25]
["ГАПОУ «Казанский энергетический колледж»","основное общее","13.02.06","Релейная защита и автоматизация электроэнергетических систем",25]
["ГАПОУ «Казанский энергетический колледж»","основное общее","13.02.01","Тепловые электрические станции",50]
["ГАПОУ «Казанский энергетический колледж»","основное общее","13.02.07","Электроснабжение (по отраслям)",50]
["ГАПОУ «Казанский энергетический колледж»","основное общее","13.01.10","Электромонтер по ремонту и обслуживанию электрооборудования (по отраслям) ",25]
["ГАПОУ «Казанский энергетический колледж»","основное общее","08.01.31","Электромонтажник электрических сетей и электрооборудования",25]
["ГАПОУ «Казанский энергетический колледж»",{"$nulls":3},{"$f":"SUM(E83:E89)","v":225},{"$f":"SUM(F83:F89)","v":0},0]
["ГАПОУ «Казанский авиационно-технический колледж имени П.В. Дементьева»","основное общее","15.02.16","Технология машиностроения",50]
["ГАПОУ «Казанский авиационно-технический колледж имени П.В. Дементьева»","основное общее","24.02.01","Производство летательных аппаратов ",50]
["ГАПОУ «Казанский авиационно-технический колледж имени П.В. Дементьева»","основное общее","15.02.14","Оснащение средствами автоматизации технологических процессов и производств (по отраслям) ",50]
["ГАПОУ «Казанский авиационно-технический колледж имени П.В. Дементьева»","основное общее","24.02.02","Производство авиационных двигателей",25]
["ГАПОУ «Казанский авиационно-технический колледж имени П.В. Дементьева»","основное общее","09.02.01","Компьютерные системы и комплексы",25]
["ГАПОУ «Казанский авиационно-технический колледж имени П.В. Дементьева»","основное общее","09.02.07","Информационные системы и программирование",25]
["ГАПОУ «Казанский авиационно-технический колледж имени П.В. Дементьева»","основное общее","15.01.35","Мастер слесарных работ",25]
["ГАПОУ «Казанский авиационно-технический колледж имени П.В. Дементьева»","основное общее","15.01.29","Контролер станочных и слесарных работ",25]
["ГАПОУ «Казанский авиационно-технический колледж имени П.В. Дементьева»","основное общее","15.01.32","Оператор станков с программным управлением",50]
["ГАПОУ «Казанский авиационно-технический колледж имени П.В. Дементьева»","основное общее","24.01.01","Слесарь-сборщик авиационной техники ",50]
["ГАПОУ «Казанский авиационно-технический колледж имени П.В. Дементьева»","основное общее","15.01.05","Сварщик (ручной и частично механизированной сварки (наплавки)",25]
["ГАПОУ «Казанский авиационно-технический колледж имени П.В. Дементьева»","основное общее","13.01.10","Электромонтер по ремонту и обслуживанию электрооборудования (по отраслям) ",25]
["ГАПОУ «Казанский авиационно-технический колледж имени П.В. Дементьева» (филиал)","основное общее","35.01.27","Мастер сельскохозяйственного производства",20]
["ГАПОУ «Казанский авиационно-технический колледж имени П.В. Дементьева» (филиал)","основное общее","08.01.27","Мастер общестроительных работ",20]
["ГАПОУ «Казанский авиационно-технический колледж имени П.В. Дементьева» (филиал)","основное общее","38.02.01","Экономика и бухгалтерский учет (по отраслям) ",20]
["ГАПОУ «Казанский авиационно-технический колледж имени П.В. Дементьева»",{"$nulls":3},{"$f":"SUM(E91:E105)","v":485},{"$f":"SUM(F91:F105)","v":0},0]
["ГАПОУ «Казанский колледж технологии и дизайна»","основное общее","29.02.02","Технология кожи и меха",20]
["ГАПОУ «Казанский колледж технологии и дизайна»","основное общее","09.02.07","Информационные системы и программирование",25]
["ГАПОУ «Казанский колледж технологии и дизайна»","основное общее","10.02.04","Обеспечение информационной безопасности телекоммуникационных систем",25]
["ГАПОУ «Казанский колледж технологии и дизайна»","основное общее","38.02.05","Товароведение и экспертиза качества потребительских товаров",25]
["ГАПОУ «Казанский колледж технологии и дизайна»","среднее общее","38.02.05","Товароведение и экспертиза качества потребительских товаров",25]
["ГАПОУ «Казанский колледж технологии и дизайна»","основное общее","29.02.10","Конструирование, моделирование и технология изготовления изделий легкой промышленности (по видам)",65]
["ГАПОУ «Казанский колледж технологии и дизайна»","среднее общее","29.02.10","Конструирование, моделирование и технология изготовления изделий легкой промышленности (по видам)",25]
["ГАПОУ «Казанский колледж технологии и дизайна»","основное общее","29.02.05","Технология текстильных изделий (по видам)",20]
["ГАПОУ «Казанский колледж технологии и дизайна»","основное общее","29.01.17","Оператор вязально-швейного оборудования",25]
["ГАПОУ «Казанский колледж технологии и дизайна»",{"$nulls":3},{"$f":"SUM(E107:E115)","v":255},{"$f":"SUM(F107:F115)","v":0},0]
["ГАПОУ «Кукморский аграрный колледж»","основное общее","35.02.16 ","Эксплуатация и ремонт сельскохозяйственной техники и оборудования",25]
["ГАПОУ «Кукморский аграрный колледж»","основное общее","35.02.05 ","Агрономия",20]
["ГАПОУ «Кукморский аграрный колледж»","основное общее","08.02.08","Монтаж и эксплуатация оборудования и систем газоснабжения",25]
["ГАПОУ «Кукморский аграрный колледж»","основное общее","43.01.09","Повар, кондитер",25]
["ГАПОУ «Кукморский аграрный колледж»","основное общее","35.01.27","Мастер сельскохозяйственного производства",25]
["ГАПОУ «Кукморский аграрный колледж»","основное общее","23.01.17","Мастер по ремонту и обслуживанию автомобилей",20]
["ГАПОУ «Кукморский аграрный колледж»","основное общее","29.01.07","Портной",20]
["ГАПОУ «Кукморский аграрный колледж»",{"$nulls":3},{"$f":"SUM(E117:E123)","v":160},{"$f":"SUM(F117:F123)","v":0},0]
["ГАПОУ «Аксубаевский техникум универсальных технологий»","основное общее","43.02.15 ","Поварское и кондитерское дело",20]
["ГАПОУ «Аксубаевский техникум универсальных технологий»","основное общее","22.02.06","Сварочное производство",20]
["ГАПОУ «Аксубаевский техникум универсальных технологий»","основное общее","23.02.07","Техническое обслуживание и ремонт двигателей, систем и агрегатов автомобилей",40]
["ГАПОУ «Аксубаевский техникум универсальных технологий»","основное общее","35.02.16 ","Эксплуатация и ремонт сельскохозяйственной техники и оборудования",20]
["ГАПОУ «Аксубаевский техникум универсальных технологий»",{"$nulls":3},{"$f":"SUM(E125:E128)","v":100},{"$f":"SUM(F125:F128)","v":0},0]
["ГАПОУ «Колледж нефтехимии и нефтепереработки имени Н.В. Лемаева»","основное общее","18.01.05","Аппаратчик – оператор производства неорганических веществ",50]
["ГАПОУ «Колледж нефтехимии и нефтепереработки имени Н.В. Лемаева»","среднее общее","18.01.05","Аппаратчик – оператор производства неорганических веществ",25]
["ГАПОУ «Колледж нефтехимии и нефтепереработки имени Н.В. Лемаева»","основное общее","18.01.27","Машинист технологических насосов и компрессоров",25]
["ГАПОУ «Колледж нефтехимии и нефтепереработки имени Н.В. Лемаева»","основное общее","15.01.20","Слесарь по контрольно-измерительным приборам и автоматике",25]
["ГАПОУ «Колледж нефтехимии и нефтепереработки имени Н.В. Лемаева»","основное общее","15.01.05","Сварщик (ручной и частично механизированной сварки (наплавки)",25]
["ГАПОУ «Колледж нефтехимии и нефтепереработки имени Н.В. Лемаева»","основное общее","18.01.28","Оператор нефтепереработки",25]
["ГАПОУ «Колледж нефтехимии и нефтепереработки имени Н.В. Лемаева»","основное общее","15.01.35","Мастер слесарных работ",25]
["ГАПОУ «Колледж нефтехимии и нефтепереработки имени Н.В. Лемаева»","основное общее","13.01.10","Электромонтер по ремонту и обслуживанию электрооборудования (по отраслям) ",25]
["ГАПОУ «Колледж нефтехимии и нефтепереработки имени Н.В. Лемаева»","основное общее","18.01.02","Лаборант-эколог",25]
["ГАПОУ «Колледж нефтехимии и нефтепереработки имени Н.В. Лемаева»","основное общее","18.02.06","Химическая технология органических веществ",150]
["ГАПОУ «Колледж нефтехимии и нефтепереработки имени Н.В. Лемаева»","основное общее","15.02.12","Монтаж, техническое обслуживание и ремонт промышленного оборудования (по отраслям)",50]
["ГАПОУ «Колледж нефтехимии и нефтепереработки имени Н.В. Лемаева»","основное общее","13.02.11","Техническая эксплуатация и обслуживание электрического и электромеханического оборудования (по отраслям)",50]
["ГАПОУ «Колледж нефтехимии и нефтепереработки имени Н.В. Лемаева»","основное общее","18.02.09","Переработка нефти и газа",25]
["ГАПОУ «Колледж нефтехимии и нефтепереработки имени Н.В. Лемаева»","основное общее","09.02.07","Информационные системы и программирование",25]
["ГАПОУ «Колледж нефтехимии и нефтепереработки имени Н.В. Лемаева»","основное общее","15.02.14","Оснащение средствами автоматизации технологических процессов и производств (по отраслям) ",75]
["ГАПОУ «Колледж нефтехимии и нефтепереработки имени Н.В. Лемаева»",{"$nulls":3},{"$f":"SUM(E130:E144)","v":625},{"$f":"SUM(F130:F144)","v":0},0]
["ГАПОУ «Дрожжановский техникум отраслевых технологий»","основное общее","23.02.07","Техническое обслуживание и ремонт двигателей, систем и агрегатов автомобилей",25]
["ГАПОУ «Дрожжановский техникум отраслевых технологий»","основное общее","35.02.16 ","Эксплуатация и ремонт сельскохозяйственной техники и оборудования",25]
["ГАПОУ «Дрожжановский техникум отраслевых технологий»","основное общее","43.02.15 ","Поварское и кондитерское дело",20]
["ГАПОУ «Дрожжановский техникум отраслевых технологий»",{"$nulls":3},{"$f":"SUM(E146:E148)","v":70},{"$f":"SUM(F146:F148)","v":0},0]
["ГАПОУ «Буинский ветеринарный техникум»","основное общее","36.02.01","Ветеринария",25]
["ГАПОУ «Буинский ветеринарный техникум»","основное общее","38.02.01","Экономика и бухгалтерский учет (по отраслям) ",25]
["ГАПОУ «Буинский ветеринарный техникум»","основное общее","40.02.02","Правоохранительная деятельность",25]
["ГАПОУ «Буинский ветеринарный техникум»","основное общее","09.02.07","Информационные системы и программирование",25]
["ГАПОУ «Буинский ветеринарный техникум»","основное общее","08.02.08","Монтаж и эксплуатация оборудования и систем газоснабжения",25]
["ГАПОУ «Буинский ветеринарный техникум»","основное общее","43.01.09","Повар, кондитер",25]
["ГАПОУ «Буинский ветеринарный техникум»","основное общее","08.01.27","Мастер общестроительных работ",25]
["ГАПОУ «Буинский ветеринарный техникум»","основное общее","13.01.10","Электромонтер по ремонту и обслуживанию электрооборудования (по отраслям) ",25]
["ГАПОУ «Буинский ветеринарный техникум»",{"$nulls":3},{"$f":"SUM(E150:E157)","v":200},{"$f":"SUM(F150:F157)","v":0},0]
["ГАПОУ «Лаишевский технико-экономический техникум»","основное общее","21.02.19","Землеустройство",25]
["ГАПОУ «Лаишевский технико-экономический техникум»","основное общее","25.02.01","Техническая эксплуатация летательных аппаратов и двигателей",20]
["ГАПОУ «Лаишевский технико-экономический техникум»","основное общее","25.02.06","Производство и обслуживние авиационной техники",20]
["ГАПОУ «Лаишевский технико-экономический техникум»","основное общее","25.02.08","Эксплуатация беспилотных авиационных систем",25]
["ГАПОУ «Лаишевский технико-экономический техникум»","основное общее","38.02.01","Экономика и бухгалтерский учет (по отраслям) ",20]
["ГАПОУ «Лаишевский технико-экономический техникум»","основное общее","40.02.04","Юриспруденция",25]
["ГАПОУ «Лаишевский технико-экономический техникум»","основное общее","40.02.02","Правоохранительная деятельность",40]
["ГАПОУ «Лаишевский технико-экономический техникум»",{"$nulls":3},{"$f":"SUM(E159:E165)","v":175},{"$f":"SUM(F159:F165)","v":0},0]
["ГАПОУ «Атнинский сельскохозяйственный техникум им. Габдуллы Тукая»","основное общее","08.01.31","Электромонтажник электрических сетей и электрооборудования",20]
["ГАПОУ «Атнинский сельскохозяйственный техникум им. Габдуллы Тукая»","основное общее","35.02.16 ","Эксплуатация и ремонт сельскохозяйственной техники и оборудования",50]
["ГАПОУ «Атнинский сельскохозяйственный техникум им. Габдуллы Тукая»","основное общее","36.02.01","Ветеринария",20]
["ГАПОУ «Атнинский сельскохозяйственный техникум им. Габдуллы Тукая»","основное общее","38.02.01","Экономика и бухгалтерский учет (по отраслям) ",25]
["ГАПОУ «Атнинский сельскохозяйственный техникум им. Габдуллы Тукая»","среднее общее","38.02.01","Экономика и бухгалтерский учет (по отраслям) ",0,null,15]
["ГАПОУ «Атнинский сельскохозяйственный техникум им. Габдуллы Тукая»","основное общее","43.02.15 ","Поварское и кондитерское дело",25]
["ГАПОУ «Атнинский сельскохозяйственный техникум им. Габдуллы Тукая»",{"$nulls":3},{"$f":"SUM(E167:E172)","v":140},{"$f":"SUM(F167:F172)","v":0},15]
["ГАПОУ «Арский агропромышленный профессиональный колледж»","основное общее","35.02.16 ","Эксплуатация и ремонт сельскохозяйственной техники и оборудования",20]
["ГАПОУ «Арский агропромышленный профессиональный колледж»","основное общее","43.02.15 ","Поварское и кондитерское дело",20]
["ГАПОУ «Арский агропромышленный профессиональный колледж»","основное общее","23.02.07","Техническое обслуживание и ремонт двигателей, систем и агрегатов автомобилей",20]
["ГАПОУ «Арский агропромышленный профессиональный колледж»","основное общее","40.02.02","Правоохранительная деятельность",20]
["ГАПОУ «Арский агропромышленный профессиональный колледж» (филиал 1)","основное общее","08.01.27","Мастер общестроительных работ",20]
["ГАПОУ «Арский агропромышленный профессиональный колледж» (филиал 2)","основное общее","35.01.27","Мастер сельскохозяйственного производства",40]
["ГАПОУ «Арский агропромышленный профессиональный колледж» (филиал 2)","основное общее","35.01.23","Хозяйка усадьбы",20]
["ГАПОУ «Арский агропромышленный профессиональный колледж»",{"$nulls":3},{"$f":"SUM(E174:E180)","v":160},{"$f":"SUM(F174:F180)","v":0},0]
["ГАПОУ «Апастовский аграрный колледж»","основное общее","43.01.09","Повар, кондитер",20]
["ГАПОУ «Апастовский аграрный колледж»","основное общее","35.02.16 ","Эксплуатация и ремонт сельскохозяйственной техники и оборудования",25]
["ГАПОУ «Апастовский аграрный колледж»","основное общее","40.02.02","Правоохранительная деятельность",25]
["ГАПОУ «Апастовский аграрный колледж»","основное общее","13.01.10","Электромонтер по ремонту и обслуживанию электрооборудования (по отраслям) ",20]
["ГАПОУ «Апастовский аграрный колледж»","среднее общее","40.02.02","Правоохранительная деятельность",null,null,20]
["ГАПОУ «Апастовский аграрный колледж»",{"$nulls":3},{"$f":"SUM(E182:E186)","v":90},{"$f":"SUM(F182:F186)","v":0},20]
["ГАПОУ «Рыбно - Слободский агротехнический техникум»","основное общее","43.01.09","Повар, кондитер",20]
["ГАПОУ «Рыбно - Слободский агротехнический техникум»","основное общее","35.02.16 ","Эксплуатация и ремонт сельскохозяйственной техники и оборудования",20]
["ГАПОУ «Рыбно - Слободский агротехнический техникум»","основное общее","23.02.07","Техническое обслуживание и ремонт двигателей, систем и агрегатов автомобилей",20]
["ГАПОУ «Рыбно - Слободский агротехнический техникум»","основное общее","35.01.27","Мастер сельскохозяйственного производства",20]
["ГАПОУ «Рыбно - Слободский агротехнический техникум»",{"$nulls":3},{"$f":"SUM(E188:E191)","v":80},{"$f":"SUM(F188:F191)","v":0},0]
["ГАПОУ «Арский педагогический колледж им.Г.Тукая»","основное общее","44.02.01","Дошкольное образование ",50]
["ГАПОУ «Арский педагогический колледж им.Г.Тукая»","основное общее","44.02.02","Преподавание в начальных классах",50]
["ГАПОУ «Арский педагогический колледж им.Г.Тукая»","основное общее","49.02.01","Физическая культура ",25]
["ГАПОУ «Арский педагогический колледж им.Г.Тукая»","основное общее","53.02.01","Музыкальное образование",20]
["ГАПОУ «Арский педагогический колледж им.Г.Тукая»","основное общее","09.02.07","Информационные системы и программирование",25]
["ГАПОУ \"Арский педагогический колледж им.Г.Тукая","гимназические классы","-","7-9 классы (гимназические классы)",20]
["ГАПОУ \"Арский педагогический колледж им.Г.Тукая","гимназические классы","-","Проживание в интернате (общежитии)",13]
["ГАПОУ «Арский педагогический колледж им.Г.Тукая»",{"$nulls":3},{"$f":"SUM(E193:E199)","v":203},{"$f":"SUM(F193:F197)","v":0},0]
["ГАПОУ «Алексеевский аграрный колледж»","основное общее","35.01.27","Мастер сельскохозяйственного производства",20]
["ГАПОУ «Алексеевский аграрный колледж»","основное общее","43.01.09","Повар, кондитер",25]
["ГАПОУ «Алексеевский аграрный колледж»","основное общее","23.01.06","Машинист дорожных и строительных машин",20]
["ГАПОУ «Алексеевский аграрный колледж»","основное общее","35.02.16 ","Эксплуатация и ремонт сельскохозяйственной техники и оборудования",25]
["ГАПОУ «Алексеевский аграрный колледж» (филиал)","основное общее","35.01.27","Мастер сельскохозяйственного производства",20]
["ГАПОУ «Алексеевский аграрный колледж» (филиал)","основное общее","36.02.01","Ветеринария",15]
["ГАПОУ «Алексеевский аграрный колледж» (филиал)","основное общее","43.01.09","Повар, кондитер",20]
["ГАПОУ «Алексеевский аграрный колледж»",{"$nulls":3},{"$f":"SUM(E201:E207)","v":145},{"$f":"SUM(F201:F207)","v":0},0]
["ГАПОУ «Набережночелнинский политехнический колледж»","основное общее","15.01.05","Сварщик (ручной и частично механизированной сварки (наплавки)",25]
["ГАПОУ «Набережночелнинский политехнический колледж»","основное общее","15.01.23","Наладчик станков и оборудования в механообработке",50]
["ГАПОУ «Набережночелнинский политехнический колледж»","основное общее","15.01.29","Контролер станочных и слесарных работ",25]
["ГАПОУ «Набережночелнинский политехнический колледж»","основное общее","15.01.33","Токарь на станках с числовым программным управлением",25]
["ГАПОУ «Набережночелнинский политехнический колледж»","основное общее","15.01.34","Фрезеровщик на станках с числовым программным управлением",25]
["ГАПОУ «Набережночелнинский политехнический колледж»","основное общее","15.01.35","Мастер слесарных работ",25]
["ГАПОУ «Набережночелнинский политехнический колледж»","основное общее","13.02.11","Техническая эксплуатация и обслуживание электрического и электромеханического оборудования (по отраслям)",50]
["ГАПОУ «Набережночелнинский политехнический колледж»","основное общее","15.02.16","Технология машиностроения",50]
["ГАПОУ «Набережночелнинский политехнический колледж»","основное общее","22.02.06","Сварочное производство",25]
["ГАПОУ «Набережночелнинский политехнический колледж»","основное общее","23.02.07","Техническое обслуживание и ремонт двигателей, систем и агрегатов автомобилей",50]
["ГАПОУ «Набережночелнинский политехнический колледж»",{"$nulls":3},{"$f":"SUM(E209:E218)","v":350},{"$f":"SUM(F209:F218)","v":0},0]
["ГАПОУ «Набережночелнинский педагогический колледж»","основное общее","44.02.01","Дошкольное образование ",50]
["ГАПОУ «Набережночелнинский педагогический колледж»","основное общее","44.02.02","Преподавание в начальных классах",75]
["ГАПОУ «Набережночелнинский педагогический колледж»","основное общее","53.02.01","Музыкальное образование",20]
["ГАПОУ «Набережночелнинский педагогический колледж»","основное общее","09.02.07","Информационные системы и программирование",25]
["ГАПОУ «Набережночелнинский педагогический колледж»",{"$nulls":3},{"$f":"SUM(E220:E223)","v":170},{"$f":"SUM(F220:F223)","v":0},{"$f":"SUM(G220:G223)","v":0}]
["ГАПОУ «Нижнекамский педагогический колледж»","основное общее","44.02.02","Преподавание в начальных классах",75]
["ГАПОУ «Нижнекамский педагогический колледж»","основное общее","44.02.01","Дошкольное образование ",50]
["ГАПОУ «Нижнекамский педагогический колледж»","основное общее","44.02.04","Специальное дошкольное образование",25]
["ГАПОУ «Нижнекамский педагогический колледж»","основное общее","49.02.01","Физическая культура ",25]
["ГАПОУ «Нижнекамский педагогический колледж»",{"$nulls":3},{"$f":"SUM(E225:E228)","v":175},{"$f":"SUM(F225:F228)","v":0},{"$f":"SUM(G225:G228)","v":0}]
["ГАПОУ «Технический колледж им В.Д. Поташова»","основное общее","09.02.07","Информационные системы и программирование",25]
["ГАПОУ «Технический колледж им В.Д. Поташова»","основное общее","15.02.16","Технология машиностроения",50]
["ГАПОУ «Технический колледж им В.Д. Поташова»","основное общее","15.02.11","Техническая эксплуатация и обслуживание роботизированного производства",25]
["ГАПОУ «Технический колледж им В.Д. Поташова»","основное общее","15.02.12","Монтаж, техническое обслуживание и ремонт промышленного оборудования (по отраслям)",25]
["ГАПОУ «Технический колледж им В.Д. Поташова»","основное общее","22.02.04","Металловедение и термическая обработка металлов",25]
["ГАПОУ «Технический колледж им В.Д. Поташова»","основное общее","23.02.07","Техническое обслуживание и ремонт двигателей, систем и агрегатов автомобилей",25]
["ГАПОУ «Технический колледж им В.Д. Поташова»","основное общее","27.02.07","Управление качеством продукции, процессов и услуг (по отраслям)",25]
["ГАПОУ «Технический колледж им В.Д. Поташова»","основное общее","15.01.05","Сварщик (ручной и частично механизированной сварки (наплавки)",25]
["ГАПОУ «Технический колледж им В.Д. Поташова»","основное общее","15.01.23","Наладчик станков и оборудования в механообработке",50]
["ГАПОУ «Технический колледж им В.Д. Поташова»",{"$nulls":3},{"$f":"SUM(E230:E238)","v":275},{"$f":"SUM(F230:F238)","v":0},0]
["ГАПОУ «Набережночелнинский технологический техникум»","основное общее","43.01.09","Повар, кондитер",50]
["ГАПОУ «Набережночелнинский технологический техникум»","основное общее","19.01.18 ","Аппаратчик-оператор производства продуктов питания из растительного сырья",25]
["ГАПОУ «Набережночелнинский технологический техникум»","основное общее","38.02.04","Коммерция (по отраслям)",50]
["ГАПОУ «Набережночелнинский технологический техникум»","основное общее","43.02.15 ","Поварское и кондитерское дело",75]
["ГАПОУ «Набережночелнинский технологический техникум»","основное общее","38.02.01","Экономика и бухгалтерский учет (по отраслям) ",25]
["ГАПОУ «Набережночелнинский технологический техникум»","основное общее","19.02.12","Технология продуктов питания животного происхождения",50]
["ГАПОУ «Набережночелнинский технологический техникум»",{"$nulls":3},{"$f":"SUM(E240:E245)","v":275},{"$f":"SUM(F240:F245)","v":0},{"$f":"SUM(G240:G245)","v":0}]
["ГАПОУ «Камский строительный колледж имени Е.Н.Батенчука»","основное общее","08.02.01","Строительство и эксплуатация зданий и сооружений",100]
["ГАПОУ «Камский строительный колледж имени Е.Н.Батенчука»","основное общее","08.02.12","Строительство и эксплуатация автомобильных дорог, аэродромов и городских путей сообщения",25]
["ГАПОУ «Камский строительный колледж имени Е.Н.Батенчука»","основное общее","08.02.14","Эксплуатация и обслуживание многоквартирного дома",25]
["ГАПОУ «Камский строительный колледж имени Е.Н.Батенчука»","основное общее","38.02.01","Экономика и бухгалтерский учет (по отраслям) ",25]
["ГАПОУ «Камский строительный колледж имени Е.Н.Батенчука»","основное общее","08.01.27","Мастер общестроительных работ",25]
["ГАПОУ «Камский строительный колледж имени Е.Н.Батенчука»","основное общее","08.01.24","Мастер столярно-плотничных ,паркетных и стекольных работ ",25]
["ГАПОУ «Камский строительный колледж имени Е.Н.Батенчука»","основное общее","08.01.28","Мастер отделочных строительных и декоративных работ ",25]
["ГАПОУ «Камский строительный колледж имени Е.Н.Батенчука»","основное общее","15.01.05","Сварщик (ручной и частично механизированной сварки (наплавки)",25]
["ГАПОУ «Камский строительный колледж имени Е.Н.Батенчука»","основное общее","13.01.10","Электромонтер по ремонту и обслуживанию электрооборудования (по отраслям) ",25]
["ГАПОУ «Камский строительный колледж имени Е.Н.Батенчука»","основное общее","29.01.07","Портной",25]
["ГАПОУ «Камский строительный колледж имени Е.Н.Батенчука»",{"$nulls":3},{"$f":"SUM(E247:E256)","v":325},{"$f":"SUM(F247:F256)","v":0},{"$f":"SUM(G247:G256)","v":0}]
["ГАПОУ «Нижнекамский многопрофильный колледж»","основное общее","15.01.05","Сварщик (ручной и частично механизированной сварки (наплавки)",70]
["ГАПОУ «Нижнекамский многопрофильный колледж»","основное общее","08.01.31","Электромонтажник электрических сетей и электрооборудования",25]
["ГАПОУ «Нижнекамский многопрофильный колледж»","основное общее","43.01.09","Повар, кондитер",25]
["ГАПОУ «Нижнекамский многопрофильный колледж»","основное общее","23.01.17","Мастер по ремонту и обслуживанию автомобилей",45]
["ГАПОУ «Нижнекамский многопрофильный колледж»","основное общее","11.02.12","Почтовая связь",20]
["ГАПОУ «Нижнекамский многопрофильный колледж»","основное общее","43.02.15 ","Поварское и кондитерское дело",50]
["ГАПОУ «Нижнекамский многопрофильный колледж»",{"$nulls":3},{"$f":"SUM(E258:E263)","v":235},{"$f":"SUM(F258:F263)","v":0},{"$f":"SUM(G258:G263)","v":0}]
["ГАПОУ «Заинский политехнический колледж»","основное общее","40.02.04","Юриспруденция",20]
["ГАПОУ «Заинский политехнический колледж»","основное общее","13.02.03","Электрические станции, сети и системы",25]
["ГАПОУ «Заинский политехнический колледж»","основное общее","09.02.01","Компьютерные системы и комплексы",25]
["ГАПОУ «Заинский политехнический колледж»","основное общее","43.01.09","Повар, кондитер",25]
["ГАПОУ «Заинский политехнический колледж»","основное общее","35.02.16 ","Эксплуатация и ремонт сельскохозяйственной техники и оборудования",20]
["ГАПОУ «Заинский политехнический колледж»","основное общее","15.01.05","Сварщик (ручной и частично механизированной сварки (наплавки)",25]
["ГАПОУ «Заинский политехнический колледж»",{"$nulls":3},{"$f":"SUM(E265:E270)","v":140},{"$f":"SUM(F265:F270)","v":0},{"$f":"SUM(G265:G270)","v":0}]
["ГАПОУ «Тетюшский государственный колледж гражданской защиты»","основное общее","20.02.02","Защита в чрезвычайных ситуациях",50]
["ГАПОУ «Тетюшский государственный колледж гражданской защиты»","основное общее","20.02.04","Пожарная безопасность",25]
["ГАПОУ «Тетюшский государственный колледж гражданской защиты»","основное общее","49.02.01","Физическая культура ",25]
["ГАПОУ «Тетюшский государственный колледж гражданской защиты»","основное общее","09.02.07","Информационные системы и программирование",25]
["ГАПОУ «Тетюшский государственный колледж гражданской защиты»","основное общее","20.02.05","Организация оперативного (экстренного) реагирования в чрезвычайных ситуациях",25]
["ГАПОУ «Тетюшский государственный колледж гражданской защиты»","основное общее","25.02.08","Эксплуатация беспилотных авиационных систем",25]
["ГАПОУ «Тетюшский государственный колледж гражданской защиты»",{"$nulls":3},{"$f":"SUM(E272:E277)","v":175},{"$f":"SUM(F272:F277)","v":0},{"$f":"SUM(G272:G277)","v":0}]
["ГАПОУ «Казанский торгово-экономический техникум»","основное общее","43.02.17 ","Технологии индустрии красоты",55]
["ГАПОУ «Казанский торгово-экономический техникум»","основное общее","43.02.05 ","Флористика",25]
["ГАПОУ «Казанский торгово-экономический техникум»","основное общее","54.02.08","Техника и искусство фотографии",15]
["ГАПОУ «Казанский торгово-экономический техникум»","основное общее","43.01.09","Повар, кондитер",30]
["ГАПОУ «Казанский торгово-экономический техникум»","основное общее","38.02.01","Экономика и бухгалтерский учет (по отраслям) ",25]
["ГАПОУ «Казанский торгово-экономический техникум»","основное общее","38.02.04","Коммерция (по отраслям)",50]
["ГАПОУ «Казанский торгово-экономический техникум»","основное общее","38.02.05","Товароведение и экспертиза качества потребительских товаров",20]
["ГАПОУ «Казанский торгово-экономический техникум»","основное общее","43.02.15 ","Поварское и кондитерское дело",50]
["ГАПОУ «Казанский торгово-экономический техникум»","основное общее","29.02.10","Конструирование, моделирование и технология изготовления изделий легкой промышленности (по видам)",20]
["ГАПОУ «Казанский торгово-экономический техникум»",{"$nulls":3},{"$f":"SUM(E279:E287)","v":290},{"$f":"SUM(F279:F287)","v":0},{"$f":"SUM(G279:G287)","v":0}]
["ГАПОУ «Бугульминский машиностроительный техникум»","основное общее","09.02.07","Информационные системы и программирование",25]
["ГАПОУ «Бугульминский машиностроительный техникум»","основное общее","13.02.07","Электроснабжение (по отраслям)",25]
["ГАПОУ «Бугульминский машиностроительный техникум»","основное общее","15.02.09","Аддитивные технологии",25]
["ГАПОУ «Бугульминский машиностроительный техникум»","основное общее","15.02.10","Мехатроника и мобильная робототехника (по отраслям)",25]
["ГАПОУ «Бугульминский машиностроительный техникум»","основное общее","15.02.14","Оснащение средствами автоматизации технологических процессов и производств (по отраслям) ",25]
["ГАПОУ «Бугульминский машиностроительный техникум»","основное общее","15.02.16","Технология машиностроения",25]
["ГАПОУ «Бугульминский машиностроительный техникум»","основное общее","21.02.20","Прикладная геодезия",25]
["ГАПОУ «Бугульминский машиностроительный техникум»",{"$nulls":3},{"$f":"SUM(E289:E295)","v":175},{"$f":"SUM(F289:F295)","v":0},0]
["ГАПОУ «Мамадышский политехнический колледж»","основное общее","09.02.01","Компьютерные системы и комплексы",25]
["ГАПОУ «Мамадышский политехнический колледж»","основное общее","15.01.05","Сварщик (ручной и частично механизированной сварки (наплавки)",25]
["ГАПОУ «Мамадышский политехнический колледж»","основное общее","19.01.19 ","Аппаратчик-оператор производства продуктов питания животного происхождения ",25]
["ГАПОУ «Мамадышский политехнический колледж»","основное общее","23.02.07","Техническое обслуживание и ремонт двигателей, систем и агрегатов автомобилей",25]
["ГАПОУ «Мамадышский политехнический колледж»","основное общее","35.02.16 ","Эксплуатация и ремонт сельскохозяйственной техники и оборудования",25]
["ГАПОУ «Мамадышский политехнический колледж»","основное общее","40.02.04","Юриспруденция",20]
["ГАПОУ «Мамадышский политехнический колледж»","основное общее","43.02.15 ","Поварское и кондитерское дело",25]
["ГАПОУ «Мамадышский политехнический колледж»","основное общее","49.02.01","Физическая культура ",20]
["ГАПОУ «Мамадышский политехнический колледж»",{"$nulls":3},{"$f":"SUM(E297:E304)","v":190},{"$f":"SUM(F297:F304)","v":0},0]
["ГАПОУ «Сабинский аграрный колледж»","основное общее","35.02.16 ","Эксплуатация и ремонт сельскохозяйственной техники и оборудования",20]
["ГАПОУ «Сабинский аграрный колледж»","основное общее","38.02.01","Экономика и бухгалтерский учет (по отраслям) ",20]
["ГАПОУ «Сабинский аграрный колледж»","основное общее","08.02.01","Строительство и эксплуатация зданий и сооружений",20]
["ГАПОУ «Сабинский аграрный колледж»","основное общее","23.02.07","Техническое обслуживание и ремонт двигателей, систем и агрегатов автомобилей",20]
["ГАПОУ «Сабинский аграрный колледж»","основное общее","09.02.07","Информационные системы и программирование",20]
["ГАПОУ «Сабинский аграрный колледж»",{"$nulls":3},{"$f":"SUM(E306:E310)","v":100},{"$f":"SUM(F306:F310)","v":0},0]
["ГАПОУ «Нижнекамский индустриальный техникум»","основное общее","09.02.07","Информационные системы и программирование",25]
["ГАПОУ «Нижнекамский индустриальный техникум»","основное общее","27.02.04","Автоматические системы управления",25]
["ГАПОУ «Нижнекамский индустриальный техникум»","основное общее","15.02.16","Технология машиностроения",25]
["ГАПОУ «Нижнекамский индустриальный техникум»","основное общее","13.01.10","Электромонтер по ремонту и обслуживанию электрооборудования (по отраслям) ",25]
["ГАПОУ «Нижнекамский индустриальный техникум»","основное общее","09.01.03","Оператор информационных систем и ресурсов",25]
["ГАПОУ «Нижнекамский индустриальный техникум»","основное общее","18.01.01","Лаборант по физико-механическим испытаниям",25]
["ГАПОУ «Нижнекамский индустриальный техникум»","основное общее","18.02.07","Технология производства и переработки пластических масс и эластомеров",25]
["ГАПОУ «Нижнекамский индустриальный техникум»",{"$nulls":3},{"$f":"SUM(E312:E318)","v":175},{"$f":"SUM(F312:F318)","v":0},0]
["Государственное бюджетное профессиональное учреждение (далее-ГБПОУ) «Спасский техникум отраслевых технологий»","основное общее","43.02.15 ","Поварское и кондитерское дело",20]
["ГБПОУ «Спасский техникум отраслевых технологий»","основное общее","35.02.16 ","Эксплуатация и ремонт сельскохозяйственной техники и оборудования",20]
["ГБПОУ «Спасский техникум отраслевых технологий»","основное общее","43.02.16","Туризм и гостеприимство",20]
["ГБПОУ «Спасский техникум отраслевых технологий»","основное общее","23.02.07","Техническое обслуживание и ремонт двигателей, систем и агрегатов автомобилей",null,15]
["ГБПОУ «Спасский техникум отраслевых технологий»",{"$nulls":3},{"$f":"SUM(E320:E323)","v":60},{"$f":"SUM(F320:F323)","v":15},{"$f":"SUM(G320:G323)","v":0}]
["ГАПОУ «Зеленодольский судостроительный колледж»","основное общее","26.02.02","Судостроение",50]
["ГАПОУ «Зеленодольский судостроительный колледж»","основное общее","26.02.04","Монтаж и техническое обслуживание судовых машин и механизмов",50]
["ГАПОУ «Зеленодольский судостроительный колледж»","основное общее","26.02.06","Эксплуатация судового электрооборудования и средств автоматики",25]
["ГАПОУ «Зеленодольский судостроительный колледж»",{"$nulls":3},{"$f":"SUM(E325:E327)","v":125},{"$f":"SUM(F325:F327)","v":0},0]
["ГАПОУ «Зеленодольский механический колледж»","основное общее","15.02.10","Мехатроника и мобильная робототехника (по отраслям)",25]
["ГАПОУ «Зеленодольский механический колледж»","основное общее","15.02.16","Технология машиностроения",50]
["ГАПОУ «Зеленодольский механический колледж»","основное общее","23.02.07","Техническое обслуживание и ремонт двигателей, систем и агрегатов автомобилей",50]
["ГАПОУ «Зеленодольский механический колледж»","основное общее","09.02.07","Информационные системы и программирование",50]
["ГАПОУ «Зеленодольский механический колледж»","основное общее","38.02.03","Операционная деятельность в логистике",50]
["ГАПОУ «Зеленодольский механический колледж»","основное общее","43.01.09","Повар, кондитер",50]
["ГАПОУ «Зеленодольский механический колледж»",{"$nulls":3},{"$f":"SUM(E329:E334)","v":275},{"$f":"SUM(F329:F334)","v":0},0]
["ГАПОУ «Елабужский политехнический колледж»","основное общее","23.02.07","Техническое обслуживание и ремонт двигателей, систем и агрегатов автомобилей",25]
["ГАПОУ «Елабужский политехнический колледж»","основное общее","35.02.16 ","Эксплуатация и ремонт сельскохозяйственной техники и оборудования",25]
["ГАПОУ «Елабужский политехнический колледж»","основное общее","15.01.05","Сварщик (ручной и частично механизированной сварки (наплавки)",25]
["ГАПОУ «Елабужский политехнический колледж»","основное общее","13.02.11","Техническая эксплуатация и обслуживание электрического и электромеханического оборудования (по отраслям)",25]
["ГАПОУ «Елабужский политехнический колледж»","основное общее","15.02.16","Технология машиностроения",25]
["ГАПОУ «Елабужский политехнический колледж»","основное общее","15.02.12","Монтаж, техническое обслуживание и ремонт промышленного оборудования (по отраслям)",125]
["ГАПОУ «Елабужский политехнический колледж»","основное общее","15.02.14","Оснащение средствами автоматизации технологических процессов и производств (по отраслям) ",100]
["ГАПОУ «Елабужский политехнический колледж»","основное общее","13.02.03","Электрические станции, сети и системы",100]
["ГАПОУ «Елабужский политехнический колледж»",{"$nulls":3},{"$f":"SUM(E336:E343)","v":450},{"$f":"SUM(F336:F343)","v":0},0]
["ГАПОУ «Камский государственный автомеханический техникум имени Л.Б.Васильева»","среднее общее","08.02.09","Монтаж, наладка и эксплуатация электрооборудования промышленных и гражданских зданий",null,null,25]
["ГАПОУ «Камский государственный автомеханический техникум имени Л.Б.Васильева»","основное общее","08.02.09","Монтаж, наладка и эксплуатация электрооборудования промышленных и гражданских зданий",25]
["ГАПОУ «Камский государственный автомеханический техникум имени Л.Б.Васильева»","основное общее","09.02.07","Информационные системы и программирование",25]
["ГАПОУ «Камский государственный автомеханический техникум имени Л.Б.Васильева»","основное общее","13.02.11","Техническая эксплуатация и обслуживание электрического и электромеханического оборудования (по отраслям)",25]
["ГАПОУ «Камский государственный автомеханический техникум имени Л.Б.Васильева»","основное общее","15.01.23","Наладчик станков и оборудования в механообработке",25]
["ГАПОУ «Камский государственный автомеханический техникум имени Л.Б.Васильева»","основное общее","15.02.16","Технология машиностроения",25]
["ГАПОУ «Камский государственный автомеханический техникум имени Л.Б.Васильева»","основное общее","15.02.10","Мехатроника и мобильная робототехника (по отраслям)",25]
["ГАПОУ «Камский государственный автомеханический техникум имени Л.Б.Васильева»","основное общее","15.02.12","Монтаж, техническое обслуживание и ремонт промышленного оборудования (по отраслям)",25]
["ГАПОУ «Камский государственный автомеханический техникум имени Л.Б.Васильева»","среднее общее","22.02.03","Литейное производство черных и цветных металлов",null,null,25]
["ГАПОУ «Камский государственный автомеханический техникум имени Л.Б.Васильева»","основное общее","23.01.17","Мастер по ремонту и обслуживанию автомобилей",25]
["ГАПОУ «Камский государственный автомеханический техникум имени Л.Б.Васильева»","основное общее","23.02.02","Автомобиле и тракторостроение",25]
["ГАПОУ «Камский государственный автомеханический техникум имени Л.Б.Васильева»","основное общее","23.02.07","Техническое обслуживание и ремонт двигателей, систем и агрегатов автомобилей",50]
["ГАПОУ «Камский государственный автомеханический техникум имени Л.Б.Васильева»","среднее общее","23.02.07","Техническое обслуживание и ремонт двигателей, систем и агрегатов автомобилей",null,null,25]
["ГАПОУ «Камский государственный автомеханический техникум имени Л.Б.Васильева»","основное общее","36.02.01","Ветеринария",25]
["ГАПОУ «Камский государственный автомеханический техникум имени Л.Б.Васильева»","основное общее","38.02.01","Экономика и бухгалтерский учет (по отраслям) ",25]
["ГАПОУ «Камский государственный автомеханический техникум имени Л.Б.Васильева»","основное общее","38.02.02","Страховое дело (по отраслям)",25]
["ГАПОУ «Камский государственный автомеханический техникум имени Л.Б.Васильева»","основное общее","38.02.03","Операционная деятельность в логистике",25]
["ГАПОУ «Камский государственный автомеханический техникум имени Л.Б.Васильева»",{"$nulls":3},{"$f":"SUM(E345:E361)","v":375},{"$f":"SUM(F345:F361)","v":0},{"$f":"SUM(G345:G361)","v":75}]
["ГАПОУ «Чистопольский сельскохозяйственный техникум им. Г.И. Усманова»","основное общее","15.01.05","Сварщик (ручной и частично механизированной сварки (наплавки)",25]
["ГАПОУ «Чистопольский сельскохозяйственный техникум им. Г.И. Усманова»","основное общее","43.01.09","Повар, кондитер",25]
["ГАПОУ «Чистопольский сельскохозяйственный техникум им. Г.И. Усманова»","основное общее","21.02.19","Землеустройство",25]
["ГАПОУ «Чистопольский сельскохозяйственный техникум им. Г.И. Усманова»","основное общее","43.02.17 ","Технологии индустрии красоты",25]
["ГАПОУ «Чистопольский сельскохозяйственный техникум им. Г.И. Усманова»","основное общее","09.02.07","Информационные системы и программирование",25]
["ГАПОУ «Чистопольский сельскохозяйственный техникум им. Г.И. Усманова»","основное общее","26.02.03","Судовождение",25]
["ГАПОУ «Чистопольский сельскохозяйственный техникум им. Г.И. Усманова»","основное общее","35.02.08","Электротехнические системы в агропромышленном комплексе (АПК)",50]
["ГАПОУ «Чистопольский сельскохозяйственный техникум им. Г.И. Усманова»","основное общее","35.02.16 ","Эксплуатация и ремонт сельскохозяйственной техники и оборудования",25]
["ГАПОУ «Чистопольский сельскохозяйственный техникум им. Г.И. Усманова»","основное общее","38.02.01","Бухгалтерский учет (по отраслям)",25]
["ГАПОУ «Чистопольский сельскохозяйственный техникум им. Г.И. Усманова»",{"$nulls":3},{"$f":"SUM(E363:E371)","v":250},{"$f":"SUM(F363:F371)","v":0},{"$f":"SUM(G363:G371)","v":0}]
["ГАПОУ «Нижнекамский агропромышленный колледж»","основное общее","23.02.07","Техническое обслуживание и ремонт двигателей, систем и агрегатов автомобилей",25]
["ГАПОУ «Нижнекамский агропромышленный колледж»","основное общее","08.02.01","Строительство и эксплуатация зданий и сооружений",25]
["ГАПОУ «Нижнекамский агропромышленный колледж»","основное общее","09.02.07","Информационные системы и программирование",25]
["ГАПОУ «Нижнекамский агропромышленный колледж»","основное общее","08.02.14","Эксплуатация и обслуживание многоквартирного дома",20]
["ГАПОУ «Нижнекамский агропромышленный колледж»","основное общее","23.01.17","Мастер по ремонту и обслуживанию автомобилей",25]
["ГАПОУ «Нижнекамский агропромышленный колледж»","основное общее","23.01.06","Машинист дорожных и строительных машин",25]
["ГАПОУ «Нижнекамский агропромышленный колледж»","основное общее","15.01.05","Сварщик (ручной и частично механизированной сварки (наплавки)",25]
["ГАПОУ «Нижнекамский агропромышленный колледж»","основное общее","23.01.09","Машинист локомотива",20]
["ГАПОУ «Нижнекамский агропромышленный колледж» (филиал)","основное общее","23.01.09","Машинист локомотива",50]
["ГАПОУ «Нижнекамский агропромышленный колледж» (филиал)","основное общее","23.01.10","Слесарь по обслужиавнию и ремонту подвижного состава ",25]
["ГАПОУ «Нижнекамский агропромышленный колледж»",{"$nulls":3},{"$f":"SUM(E373:E382)","v":265},{"$f":"SUM(F373:F382)","v":0},0]
["ГАПОУ «Лениногорский нефтяной техникум»","основное общее","09.02.07","Информационные системы и программирование",20]
["ГАПОУ «Лениногорский нефтяной техникум»","основное общее","13.02.11","Техническая эксплуатация и обслуживание электрического и электромеханического оборудования (по отраслям)",20]
["ГАПОУ «Лениногорский нефтяной техникум»","основное общее","15.02.12","Монтаж, техническое обслуживание и ремонт промышленного оборудования (по отраслям)",20]
["ГАПОУ «Лениногорский нефтяной техникум»","основное общее","21.02.01","Разработка и эксплуатация нефтяных и газовых месторождений",25]
["ГАПОУ «Лениногорский нефтяной техникум»","основное общее","21.02.02","Бурение нефтяных и газовых скважин",20]
["ГАПОУ «Лениногорский нефтяной техникум»","основное общее","21.02.03","Сооружение и эксплуатация газонефтепроводов и газонефтехранилищ",20]
["ГАПОУ «Лениногорский нефтяной техникум»","основное общее","21.02.20","Прикладная геодезия",20]
["ГАПОУ «Лениногорский нефтяной техникум»","основное общее","21.02.10","Геология и разведка нефтяных и газовых месторождений",20]
["ГАПОУ «Лениногорский нефтяной техникум»","основное общее","21.02.11","Геофизические методы поисков и разведки  месторождений полезных ископаемых",20]
["ГАПОУ «Лениногорский нефтяной техникум»","основное общее","27.02.04","Автоматические системы управления",20]
["ГАПОУ «Лениногорский нефтяной техникум»","основное общее","38.02.01","Экономика и бухгалтерский учет (по отраслям) ",20]
["ГАПОУ «Лениногорский нефтяной техникум»",{"$nulls":3},{"$f":"SUM(E384:E394)","v":225},{"$f":"SUM(F384:F394)","v":0},{"$f":"SUM(G384:G394)","v":0}]
["ГАПОУ «Черемшанский аграрный техникум»","основное общее","35.02.16 ","Эксплуатация и ремонт сельскохозяйственной техники и оборудования",20]
["ГАПОУ «Черемшанский аграрный техникум»","основное общее","43.02.15 ","Поварское и кондитерское дело",20]
["ГАПОУ «Черемшанский аграрный техникум»","основное общее","23.01.17","Мастер по ремонту и обслуживанию автомобилей",20]
["ГАПОУ «Черемшанский аграрный техникум»",{"$nulls":3},{"$f":"SUM(E396:E398)","v":60}]
["ГАПОУ «Нижнекамский политехнический колледж имени Е.Н.Королёва»","основное общее","08.02.01","Строительство и эксплуатация зданий и сооружений",50]
["ГАПОУ «Нижнекамский политехнический колледж имени Е.Н.Королёва»","основное общее","08.02.03","Производство неметаллических строительных изделий и конструкций",20]
["ГАПОУ «Нижнекамский политехнический колледж имени Е.Н.Королёва»","основное общее","08.02.04","Водоснабжение и водоотведение",20]
["ГАПОУ «Нижнекамский политехнический колледж имени Е.Н.Королёва»","основное общее","13.02.01","Тепловые электрические станции",20]
["ГАПОУ «Нижнекамский политехнический колледж имени Е.Н.Королёва»","основное общее","13.02.03","Электрические станции, сети и системы",25]
["ГАПОУ «Нижнекамский политехнический колледж имени Е.Н.Королёва»","основное общее","13.02.07","Электроснабжение (по отраслям)",25]
["ГАПОУ «Нижнекамский политехнический колледж имени Е.Н.Королёва»","основное общее","23.02.01","Организация перевозок и управление на транспорте (по видам)",20]
["ГАПОУ «Нижнекамский политехнический колледж имени Е.Н.Королёва»","основное общее","23.02.04","Техническая эксплуатация подъемно-транспортных, строительных, дорожных машин и оборудования (по отраслям)",20]
["ГАПОУ «Нижнекамский политехнический колледж имени Е.Н.Королёва»","основное общее","09.02.07","Информационные системы и программирование",25]
["ГАПОУ «Нижнекамский политехнический колледж имени Е.Н.Королёва»",{"$nulls":3},{"$f":"SUM(E400:E408)","v":225},{"$f":"SUM(F400:F408)","v":0},{"$f":"SUM(G400:G408)","v":0}]
["ГАПОУ «Лениногорский музыкально-художественный педагогический колледж»","основное общее","53.02.01","Музыкальное образование",20]
["ГАПОУ «Лениногорский музыкально-художественный педагогический колледж»","основное общее","54.02.06","Изобразительное искусство и черчение",25]
["ГАПОУ «Лениногорский музыкально-художественный педагогический колледж»","основное общее","44.02.01","Дошкольное образование ",25]
["ГАПОУ «Лениногорский музыкально-художественный педагогический колледж»","основное общее","44.02.02","Преподавание в начальных классах",25]
["ГАПОУ «Лениногорский музыкально-художественный педагогический колледж»",{"$nulls":3},{"$f":"SUM(E410:E413)","v":95},{"$f":"SUM(F410:F413)","v":0},{"$f":"SUM(G410:G413)","v":0}]
["ГАПОУ «Мензелинский педагогический колледж и мени Мусы Джалиля»","основное общее","44.02.01","Дошкольное образование ",25]
["ГАПОУ «Мензелинский педагогический колледж и мени Мусы Джалиля»","основное общее","44.02.02","Преподавание в начальных классах",25]
["ГАПОУ «Мензелинский педагогический колледж и мени Мусы Джалиля»","основное общее","49.02.01","Физическая культура ",25]
["ГАПОУ «Мензелинский педагогический колледж и мени Мусы Джалиля»","основное общее","09.02.07","Информационные системы и программирование",25]
["ГАПОУ «Мензелинский педагогический колледж и мени Мусы Джалиля»","гимназические классы",null,"Гимназические классы",15]
["ГАПОУ «Мензелинский педагогический колледж и мени Мусы Джалиля»","проживание",null,"Гимназические классы",8]
["ГАПОУ «Мензелинский педагогический колледж и мени Мусы Джалиля»",{"$nulls":3},{"$f":"SUM(E415:E420)","v":123}]
["ГАПОУ «Тетюшский сельскохозяйственный техникум»","среднее общее","35.02.05","Агрономия",null,null,20]
["ГАПОУ «Тетюшский сельскохозяйственный техникум»","основное общее","35.02.16 ","Эксплуатация и ремонт сельскохозяйственной техники и оборудования",25]
["ГАПОУ «Тетюшский сельскохозяйственный техникум»","основное общее","38.02.01","Экономика и бухгалтерский учет (по отраслям) ",25]
["ГАПОУ «Тетюшский сельскохозяйственный техникум»","основное общее","38.02.03","Операционная деятельность в логистике",20]
["ГАПОУ «Тетюшский сельскохозяйственный техникум»","основное общее","35.01.15","Мастер по ремонту и обслуживанию электрооборудования в сельском хозяйстве ",20]
["ГАПОУ «Тетюшский сельскохозяйственный техникум»",{"$nulls":3},{"$f":"SUM(E422:E426)","v":90},{"$f":"SUM(F422:F426)","v":0},{"$f":"SUM(G422:G426)","v":20}]
["ГАПОУ «Альметьевский политехнический техникум»","основное общее","08.02.01","Строительство и эксплуатация зданий и сооружений",60]
["ГАПОУ «Альметьевский политехнический техникум»","основное общее","08.02.12","Строительство и эксплуатация автомобильных дорог, аэродромов и городских путей сообщения",20]
["ГАПОУ «Альметьевский политехнический техникум»","основное общее","09.02.06","Сетевое и системное администрирование",20]
["ГАПОУ «Альметьевский политехнический техникум»","основное общее","09.02.07","Информационные системы и программирование",40]
["ГАПОУ «Альметьевский политехнический техникум»","основное общее","13.02.11","Техническая эксплуатация и обслуживание электрического и электромеханического оборудования (по отраслям)",25]
["ГАПОУ «Альметьевский политехнический техникум»","основное общее","15.02.12","Монтаж, техническое обслуживание и ремонт промышленного оборудования (по отраслям)",25]
["ГАПОУ «Альметьевский политехнический техникум»","основное общее","15.02.14","Оснащение средствами автоматизации технологических процессов и производств (по отраслям) ",25]
["ГАПОУ «Альметьевский политехнический техникум»","основное общее","21.02.01","Разработка и эксплуатация нефтяных и газовых месторождений",25]
["ГАПОУ «Альметьевский политехнический техникум»","основное общее","21.02.02","Бурение нефтяных и газовых скважин",25]
["ГАПОУ «Альметьевский политехнический техникум»","основное общее","21.02.11","Геофизические методы поисков и разведки  месторождений полезных ископаемых",25]
["ГАПОУ «Альметьевский политехнический техникум»","основное общее","23.02.07","Техническое обслуживание и ремонт двигателей, систем и агрегатов автомобилей",40]
["ГАПОУ «Альметьевский политехнический техникум»",{"$nulls":3},{"$f":"SUM(E428:E438)","v":330}]
["ГАПОУ «Азнакаевский политехнический техникум»","основное общее","35.02.16 ","Эксплуатация и ремонт сельскохозяйственной техники и оборудования",25]
["ГАПОУ «Азнакаевский политехнический техникум»","основное общее","43.02.15 ","Поварское и кондитерское дело",20]
["ГАПОУ «Азнакаевский политехнический техникум»","основное общее","35.01.27","Мастер сельскохозяйственного производства",20]
["ГАПОУ «Азнакаевский политехнический техникум»","основное общее","15.01.05","Сварщик (ручной и частично механизированной сварки (наплавки)",20]
["ГАПОУ «Азнакаевский политехнический техникум»","основное общее","23.01.17","Мастер по ремонту и обслуживанию автомобилей",25]
["ГАПОУ «Азнакаевский политехнический техникум»","основное общее","38.02.01","Экономика и бухгалтерский учет (по отраслям) ",20]
["ГАПОУ «Азнакаевский политехнический техникум»","основное общее","13.01.10","Электромонтер по ремонту и обслуживанию электрооборудования (по отраслям) ",20]
["ГАПОУ «Азнакаевский политехнический техникум»",{"$nulls":3},{"$f":"SUM(E440:E446)","v":150},{"$f":"SUM(F440:F446)","v":0},0]
["ГАПОУ «Бугульминский аграрный колледж»","основное общее","23.01.17","Мастер по ремонту и обслуживанию автомобилей",20]
["ГАПОУ «Бугульминский аграрный колледж»","основное общее","35.01.27","Мастер сельскохозяйственного производства",20]
["ГАПОУ «Бугульминский аграрный колледж»","основное общее","43.01.09","Повар, кондитер",20]
["ГАПОУ «Бугульминский аграрный колледж»","основное общее","35.02.16 ","Эксплуатация и ремонт сельскохозяйственной техники и оборудования",20]
["ГАПОУ «Бугульминский аграрный колледж»","основное общее","38.02.01","Экономика и бухгалтерский учет (по отраслям) ",20]
["ГАПОУ «Бугульминский аграрный колледж»","основное общее","38.02.02","Страховое дело (по отраслям)",20]
["ГАПОУ «Бугульминский аграрный колледж»","среднее общее","23.01.17","Мастер по ремонту и обслуживанию автомобилей",20]
["ГАПОУ «Бугульминский аграрный колледж»",{"$nulls":3},{"$f":"SUM(E448:E454)","v":140},{"$f":"SUM(F448:F454)","v":0},{"$f":"SUM(G448:G454)","v":0}]
["ГАПОУ «Нурлатский аграрный техникум»","основное общее","23.02.07","Техническое обслуживание и ремонт двигателей, систем и агрегатов автомобилей",25]
["ГАПОУ «Нурлатский аграрный техникум»","основное общее","35.02.16 ","Эксплуатация и ремонт сельскохозяйственной техники и оборудования",25]
["ГАПОУ «Нурлатский аграрный техникум»","основное общее","38.02.01","Экономика и бухгалтерский учет (по отраслям) ",20]
["ГАПОУ «Нурлатский аграрный техникум»","основное общее","15.01.05","Сварщик (ручной и частично механизированной сварки (наплавки)",25]
["ГАПОУ «Нурлатский аграрный техникум»","основное общее","43.02.15 ","Поварское и кондитерское дело",25]
["ГАПОУ «Нурлатский аграрный техникум»",{"$nulls":3},{"$f":"SUM(E456:E460)","v":120},{"$f":"SUM(F456:F460)","v":0},{"$f":"SUM(G456:G460)","v":0}]
["ГАПОУ «Бугульминский строительно-технический колледж»","основное общее","43.02.15 ","Поварское и кондитерское дело",20]
["ГАПОУ «Бугульминский строительно-технический колледж»","среднее общее","43.02.15","Поварское и кондитерское дело",null,null,15]
["ГАПОУ «Бугульминский строительно-технический колледж»","основное общее","22.02.06","Сварочное производство",20]
["ГАПОУ «Бугульминский строительно-технический колледж»","основное общее","23.02.07","Техническое обслуживание и ремонт двигателей, систем и агрегатов автомобилей",20]
["ГАПОУ «Бугульминский строительно-технический колледж»","основное общее","08.02.01","Строительство и эксплуатация зданий и сооружений",20]
["ГАПОУ «Бугульминский строительно-технический колледж»","среднее общее","08.02.01","Строительство и эксплуатация зданий и сооружений",null,null,15]
["ГАПОУ «Бугульминский строительно-технический колледж»","основное общее","29.02.10","Конструирование, моделирование и технология изготовления изделий легкой промышленности (по видам)",20]
["ГАПОУ «Бугульминский строительно-технический колледж»","основное общее","21.01.04","Машинист на буровых установках",25]
["ГАПОУ «Бугульминский строительно-технический колледж»","основное общее","23.01.09","Машинист локомотива",25]
["ГАПОУ «Бугульминский строительно-технический колледж»","основное общее","18.01.02","Лаборант-эколог",20]
["ГАПОУ «Бугульминский строительно-технический колледж»","среднее общее","23.01.17","Мастер по ремонту и обслуживанию автомобилей",20]
["ГАПОУ «Бугульминский строительно-технический колледж»",{"$nulls":3},{"$f":"SUM(E462:E472)","v":190},{"$f":"SUM(F462:F472)","v":0},{"$f":"SUM(G462:G472)","v":30}]
["ГАПОУ «Бавлинский аграрный колледж»","основное общее","15.01.05","Сварщик (ручной и частично механизированной сварки (наплавки)",20]
["ГАПОУ «Бавлинский аграрный колледж»","основное общее","38.02.01","Экономика и бухгалтерский учет (по отраслям) ",20]
["ГАПОУ «Бавлинский аграрный колледж»","основное общее","15.01.20","Слесарь по контрольно-измерительным приборам и автоматике",20]
["ГАПОУ «Бавлинский аграрный колледж»","основное общее","43.01.09","Повар. Кондитер",20]
["ГАПОУ «Бавлинский аграрный колледж»",{"$nulls":3},{"$f":"SUM(E474:E477)","v":80},{"$f":"SUM(F474:F477)","v":0},{"$f":"SUM(G474:G477)","v":0}]
["ГБПОУ «Альметьевский профессиональный колледж»","основное общее","43.01.09","Повар, кондитер",20]
["ГБПОУ «Альметьевский профессиональный колледж»","основное общее","15.01.05","Сварщик (ручной и частично механизированной сварки (наплавки)",20]
["ГБПОУ «Альметьевский профессиональный колледж»","основное общее","15.01.32","Оператор станков с программным управлением",20]
["ГБПОУ «Альметьевский профессиональный колледж»","основное общее","13.01.10","Электромонтер по ремонту и обслуживанию электрооборудования (по отраслям) ",20]
["ГБПОУ «Альметьевский профессиональный колледж»","основное общее","08.01.27","Мастер общестроительных работ",20]
["ГБПОУ «Альметьевский профессиональный колледж»","основное общее","15.01.35","Мастер слесарных работ",20]
["ГБПОУ «Альметьевский профессиональный колледж»","основное общее","15.02.16","Технология машиностроения",20]
["ГБПОУ «Альметьевский профессиональный колледж»","основное общее","13.02.11","Техническая эксплуатация и обслуживание электрического и электромеханического оборудования (по отраслям)",20]
["ГБПОУ «Альметьевский профессиональный колледж»","основное общее","22.02.03","Литейное производство черных и цветных металлов",25]
["ГБПОУ «Альметьевский профессиональный колледж»",{"$nulls":3},{"$f":"SUM(E479:E487)","v":185},{"$f":"SUM(F479:F487)","v":0},{"$f":"SUM(G479:G487)","v":0}]
["ГАПОУ «Лениногорский политехнический колледж»","основное общее","08.02.01","Строительство и эксплуатация зданий и сооружений",20]
["ГАПОУ «Лениногорский политехнический колледж»","основное общее","22.02.06","Сварочное производство",25]
["ГАПОУ «Лениногорский политехнический колледж»","основное общее","21.02.03","Сооружение и эксплуатация газонефтепроводов и газонефтехранилищ",25]
["ГАПОУ «Лениногорский политехнический колледж»","основное общее","15.02.16","Технология машиностроения",20]
["ГАПОУ «Лениногорский политехнический колледж»","основное общее","23.02.07","Техническое обслуживание и ремонт двигателей, систем и агрегатов автомобилей",20]
["ГАПОУ «Лениногорский политехнический колледж»","основное общее","43.02.15 ","Поварское и кондитерское дело",25]
["ГАПОУ «Лениногорский политехнический колледж»","основное общее","13.02.11","Техническая эксплуатация и обслуживание электрического и электромеханического оборудования (по отраслям)",20]
["ГАПОУ «Лениногорский политехнический колледж»","основное общее","38.02.01","Экономика и бухгалтерский учет (по отраслям) ",20]
["ГАПОУ «Лениногорский политехнический колледж»","основное общее","15.01.31","Мастер контрольно-измерительных приборов и автоматики",20]
["ГАПОУ «Лениногорский политехнический колледж»",{"$nulls":3},{"$f":"SUM(E489:E497)","v":195},{"$f":"SUM(F489:F497)","v":0},0]
["ГАПОУ «Сармановский аграрный колледж»","основное общее","35.02.16 ","Эксплуатация и ремонт сельскохозяйственной техники и оборудования",45]
["ГАПОУ «Сармановский аграрный колледж»","среднее общее","35.02.16","Эксплуатация и ремонт сельскохозяйственной техники и оборудования",null,null,20]
["ГАПОУ «Сармановский аграрный колледж»","основное общее","35.01.27","Мастер сельскохозяйственного производства",20]
["ГАПОУ «Сармановский аграрный колледж»","основное общее","43.01.09","Повар, кондитер",20]
["ГАПОУ «Сармановский аграрный колледж»","среднее общее","36.02.02","Зоотехния",0,null,20]
["ГАПОУ «Сармановский аграрный колледж»",{"$nulls":3},{"$f":"SUM(E499:E503)","v":85},{"$f":"SUM(F499:F503)","v":0},{"$f":"SUM(G499:G503)","v":40}]
["ГБПОУ «Бугульминский профессионально-педагогический колледж»","основное общее","39.02.01","Социальная работа",20]
["ГБПОУ «Бугульминский профессионально-педагогический колледж»","основное общее","40.02.02","Правоохранительная деятельность",25]
["ГБПОУ «Бугульминский профессионально-педагогический колледж»","основное общее","44.02.01","Дошкольное образование ",25]
["ГБПОУ «Бугульминский профессионально-педагогический колледж»","основное общее","44.02.02","Преподавание в начальных классах",25]
["ГБПОУ «Бугульминский профессионально-педагогический колледж»","основное общее","44.02.06","Профессиональное обучение (по отраслям)",25]
["ГБПОУ «Бугульминский профессионально-педагогический колледж»","основное общее","46.02.01","Документационное обеспечение управления и архивоведение",25]
["ГБПОУ «Бугульминский профессионально-педагогический колледж»",{"$nulls":3},{"$f":"SUM(E505:E510)","v":145},{"$f":"SUM(F505:F510)","v":0},{"$f":"SUM(G505:G510)","v":0}]
["ГАПОУ «Муслюмовский политехнический техникум»","основное общее","23.01.17","Мастер по ремонту и обслуживанию автомобилей",20]
["ГАПОУ «Муслюмовский политехнический техникум»","основное общее","35.02.16 ","Эксплуатация и ремонт сельскохозяйственной техники и оборудования",25]
["ГАПОУ «Муслюмовский политехнический техникум»","основное общее","43.02.15 ","Поварское и кондитерское дело",20]
["ГАПОУ «Муслюмовский политехнический техникум»",{"$nulls":3},{"$f":"SUM(E512:E514)","v":65},{"$f":"SUM(F512:F514)","v":0},{"$f":"SUM(G512:G514)","v":0}]
["ГАПОУ «Казанский нефтехимический колледж им.В.П. Лушникова»","основное общее","09.02.07","Информационные системы и программирование",25]
["ГАПОУ «Казанский нефтехимический колледж им.В.П. Лушникова»","основное общее","15.02.12","Монтаж, техническое обслуживание и ремонт промышленного оборудования (по отраслям)",25]
["ГАПОУ «Казанский нефтехимический колледж им.В.П. Лушникова»","основное общее","15.02.14","Оснащение средствами автоматизации технологических процессов и производств (по отраслям) ",25]
["ГАПОУ «Казанский нефтехимический колледж им.В.П. Лушникова»","основное общее","38.02.01","Экономика и бухгалтерский учет (по отраслям) ",25]
["ГАПОУ «Казанский нефтехимический колледж им.В.П. Лушникова»","основное общее","20.02.01","Экологическая безопасность природных комплексов",25]
["ГАПОУ «Казанский нефтехимический колледж им.В.П. Лушникова»","основное общее","40.02.04","Юриспруденция",25]
["ГАПОУ «Казанский нефтехимический колледж им.В.П. Лушникова»","основное общее","46.02.01","Документационное обеспечение управления и архивоведение",25]
["ГАПОУ «Казанский нефтехимический колледж им.В.П. Лушникова»","основное общее","18.01.33","Лаборант по контролю качества сырья, \nреактивов,промежуточных продуктов, готовой  продукции, отходов производства (по отраслям)",25]
["ГАПОУ «Казанский нефтехимический колледж им.В.П. Лушникова»","основное общее","18.01.05","Аппаратчик – оператор производства неорганических веществ",25]
["ГАПОУ «Казанский нефтехимический колледж им.В.П. Лушникова»",{"$nulls":3},{"$f":"SUM(E516:E524)","v":225},{"$f":"SUM(F516:F524)","v":0},{"$f":"SUM(G516:G524)","v":0}]
["ГАПОУ «Актанышский технологический техникум»","основное общее","35.02.16 ","Эксплуатация и ремонт сельскохозяйственной техники и оборудования",20]
["ГАПОУ «Актанышский технологический техникум»","основное общее","35.01.27","Мастер сельскохозяйственного производства",20]
["ГАПОУ «Актанышский технологический техникум»","основное общее","43.02.15 ","Поварское и кондитерское дело",20]
["ГАПОУ «Актанышский технологический техникум»","основное общее","09.02.07","Информационные системы и программирование",20]
["ГАПОУ «Актанышский технологический техникум»","основное общее","38.02.01","Экономика и бухгалтерский учет (по отраслям) ",20]
["ГАПОУ «Актанышский технологический техникум»",{"$nulls":3},{"$f":"SUM(E526:E530)","v":100},{"$f":"SUM(F526:F530)","v":0},{"$f":"SUM(G526:G530)","v":0}]
["ГАПОУ «Мензелинский сельскохозяйственный техникум»","основное общее","08.02.09","Монтаж, наладка и эксплуатация электрооборудования промышленных и гражданских зданий",25]
["ГАПОУ «Мензелинский сельскохозяйственный техникум»","среднее общее","08.02.09","Монтаж, наладка и эксплуатация электрооборудования промышленных и гражданских зданий",null,null,15]
["ГАПОУ «Мензелинский сельскохозяйственный техникум»","основное общее","23.02.07","Техническое обслуживание и ремонт двигателей, систем и агрегатов автомобилей",20]
["ГАПОУ «Мензелинский сельскохозяйственный техникум»","основное общее","36.02.01","Ветеринария",20]
["ГАПОУ «Мензелинский сельскохозяйственный техникум»","основное общее","43.01.09","Повар, кондитер",20]
["ГАПОУ «Мензелинский сельскохозяйственный техникум»",{"$nulls":3},{"$f":"SUM(E532:E536)","v":85},{"$f":"SUM(F532:F536)","v":0},{"$f":"SUM(G532:G536)","v":15}]
["ГАПОУ «Альметьевский торгово-экономический техникум» ","основное общее","38.02.01","Экономика и бухгалтерский учет (по отраслям) ",25]
["ГАПОУ «Альметьевский торгово-экономический техникум» ","основное общее","38.02.02","Страховое дело (по отраслям)",25]
["ГАПОУ «Альметьевский торгово-экономический техникум» ","основное общее","38.02.03","Операционная деятельность в логистике",25]
["ГАПОУ «Альметьевский торгово-экономический техникум» ","основное общее","38.02.05","Товароведение и экспертиза качества потребительских товаров",25]
["ГАПОУ «Альметьевский торгово-экономический техникум» ","основное общее","40.02.04","Юриспруденция",25]
["ГАПОУ «Альметьевский торгово-экономический техникум» ","основное общее","43.02.15 ","Поварское и кондитерское дело",25]
["ГАПОУ «Альметьевский торгово-экономический техникум» ","основное общее","43.02.16","Туризм и гостеприимство",25]
["ГАПОУ «Альметьевский торгово-экономический техникум» ",{"$nulls":3},{"$f":"SUM(E538:E544)","v":175},{"$f":"SUM(F538:F544)","v":0},{"$f":"SUM(G538:G544)","v":0}]